Cogmind - Beta 9.2 @@@ ROGUE MODE // 2019.11.13 @ 19:29:07 Player: fartblaster Result: Destroyed by G-34 Mercenary with Small Laser Performance ------------- Evolutions (1) 500 Regions Visited (2) 400 Robots Destroyed (25) 125 Value Destroyed (618) 618 Prototype IDs (0) 0 Alien Tech Used (0) 0 Bonus (0) 0 TOTAL SCORE: 1643 Bonus ------- None Cogmind --------- Core Integrity 0/400 Matter 262/300 Energy 66/100 System Corruption 3% Temperature Cool (13) Movement Treading (160) Location -9/Materials Parts ------- > --- POWER (1) -------- (None) > --- PROPULSION (4) --- Light Treads > --- UTILITY (2) ------ Small Storage Unit > --- WEAPON (2) ------- (None) > --- INVENTORY (6) ---- Datajack Peak State ------------ > --- POWER ------------ Light Nuclear Core > --- PROPULSION ------- Light Treads Light Treads > --- UTILITY ---------- Small Storage Unit Sensor Array > --- WEAPON ----------- EM Pulse Gun Particle Gun > --- INVENTORY -------- Light Ion Engine EM Pulse Gun Assault Rifle Assault Rifle Light Assault Rifle Datajack [Rating: 10] Favorites ----------- Power Light Nuclear Core Engine Ion Engine Power Core Light Nuclear Core Propulsion Light Treads Treads Light Treads Leg Aluminum Leg Utility Small Storage Unit Device Sensor Array Storage Small Storage Unit Weapon Assault Rifle Energy Gun Particle Gun Energy Cannon Light EM Pulse Cannon Ballistic Gun Assault Rifle Build | -11 -10 -9 ------- Run | Scr Mat Mat Slots Evolved 2 | . . 2 Power . | . . . Propulsion 2 | . . 2 Utility . | . . . Weapon . | . . . Parts Attached 24 | 6 8 10 Power 5 | 1 3 1 Engine 4 | 1 2 1 Core 1 | . 1 . Reactor . | . . . Propulsion 6 | 2 1 3 Treads 4 | 2 1 1 Leg 2 | . . 2 Wheel . | . . . Hover . | . . . Flight . | . . . Utility 2 | 1 1 . Device 1 | . 1 . Storage 1 | 1 . . Processor . | . . . Hackware . | . . . Protection . | . . . Artifact . | . . . Weapon 11 | 2 3 6 Energy Gun 5 | . 2 3 Energy Cannon 1 | . . 1 Ballistic Gun 5 | 2 1 2 Ballistic Cannon . | . . . Launcher . | . . . Special Weapon . | . . . Impact Weapon . | . . . Slashing Weapon . | . . . Piercing Weapon . | . . . Special Melee Weapon . | . . . Unidentified Prototypes . | . . . Parts Lost 14 | . 1 13 Power 3 | . 1 2 Propulsion 3 | . . 3 Utility 1 | . . 1 Weapon 7 | . . 7 Highest Loss Streak 11 | . 1 11 Average Slot Usage (%) 81 | . 87 51 Engine 3 | . 4 1 Core 8 | . 9 5 Treads 23 | . 27 5 Leg 1 | . . 6 Device 3 | . 3 5 Storage 13 | . 14 11 Energy Gun 10 | . 11 7 Ballistic Gun 14 | . 16 6 Naked Turns . | . . . Heaviest Build 15 | 11 15 15 Greatest Support 40 | 40 40 40 Greatest Overweight (x) 4 | . . 4 Average Overweight (x) . | . . . Largest Inventory Capacity 6 | 6 6 6 Average Capacity 5 | 5 6 6 Most Carried 6 | 4 6 6 Average Carried 5 | 1 5 3 Final Capacity 6 | 6 6 6 Final Carried 6 | 4 6 1 Class Distribution -------------------- 100% | Mutant Dominant Class ---------------- Mutant | -10/Materials Mutant | -9/Materials Resources | -11 -10 -9 ----------- Run | Scr Mat Mat Matter Collected 615 | 184 377 54 Remotely . | . . . Salvage Created 811 | . 577 234 Parts 47 | . 29 18 Haulers Intercepted . | . . . Recyclers Shooed . | . . . Parts Field Recycled . | . . . Retrieved Matter . | . . . Parts Self-Destructed . | . . . Prevented . | . . . Kills | -11 -10 -9 ------- Run | Scr Mat Mat Combat Hostiles Destroyed 18 | . 12 6 Melee 1 | . . 1 Guns 15 | . 12 3 AOE 2 | . . 2 Classes Destroyed 8 | . 6 2 Worker 2 | . 1 1 Recycler 2 | . 2 . Operator 1 | . 1 . Watcher 2 | . 2 . Swarmer 6 | . 6 . Grunt 9 | . 6 3 Duelist 1 | . . 1 Sentry 2 | . . 2 Best Kill Streak 4 | . 4 3 Combat Bots Only 3 | . 3 2 Max Kills in Single Turn 2 | . 2 2 Gunslinging . | . . . Exploded 2 | . . 2 Melee 1 | . . 1 Uniques/NPCs Destroyed . | . . . Combat | -11 -10 -9 -------- Run | Scr Mat Mat Damage Taken 1761 | . 646 1115 Core 491 | . 88 403 Absorbed by Shields . | . . . Core Remaining (%) 82 | 100 64 . Volleys Fired 72 | . 56 16 Largest 2 | . 2 2 Hottest 105 | . 105 76 Shots Fired 135 | . 112 23 Gun 132 | . 112 20 Cannon 3 | . . 3 Launcher . | . . . Special . | . . . Kinetic 85 | . 74 11 Thermal 25 | . 21 4 Explosive . | . . . Electromagnetic 25 | . 17 8 Robot Hit Streak 19 | . 19 9 Robot Miss Streak 7 | . 7 1 Penetration Max . | . . . Secondary Targets 3 | . 3 . Max Gunslinging Chain 1 | . 1 . Shots Hit Robots 94 | . 75 19 Core Hits 41 | . 28 13 Critical Hits 1 | . 1 . Critical Kills . | . . . Critical Parts Destroyed 1 | . 1 . Melee Attacks . | . . . Impact . | . . . Slashing . | . . . Piercing . | . . . Sneak Attacks . | . . . Combat Hostiles . | . . . Follow-up Attacks . | . . . Damage Inflicted 1697 | . 981 716 Guns 1136 | . 941 195 Cannons 58 | . . 58 Explosions 498 | . 38 460 Melee . | . . . Ramming 5 | . 2 3 Kinetic 682 | . 567 115 Thermal 743 | . 252 491 Explosive . | . . . Electromagnetic 267 | . 160 107 Impact . | . . . Slashing . | . . . Piercing . | . . . Highest Corruption 4 | . 4 3 Average Corruption 3 | . 3 3 Corruption Purged . | . . . Effects 15 | . 14 1 Message Errors 3 | . 3 . Matter Fused 2 | . 2 . Heat Flow Errors 2 | . 2 . Energy Discharges 3 | . 2 1 Parts Rejected 1 | . 1 . Data Loss (minor) 1 | . 1 . Targeting Errors 3 | . 3 . Overload Shots . | . . . Overflow Damage 392 | . . 392 Projectiles . | . . . Explosions 392 | . . 392 Melee . | . . . Knockbacks . | . . . Impact . | . . . Kinetic . | . . . Secondary . | . . . Self-Inflicted Damage 369 | . 10 359 Shots 6 | . 1 5 Rammed 2 | . 1 1 Targets Rammed 2 | . 1 1 Kicked . | . . . Crushed . | . . . Highest Temperature 387 | . 387 40 Average Temperature 106 | . 123 14 Received Heat Transfer 423 | . 153 270 Effects 4 | . 4 . Shutdowns 2 | . 2 . Energy Bleed 1 | . 1 . Matter Decay 1 | . 1 . Siege Activations . | . . . Robots Corrupted . | . . . Combat Hostiles . | . . . Parts Fried 1 | . . 1 Impact Corruptions . | . . . Robots Melted . | . . . Combat Hostiles . | . . . Parts Melted 1 | . 1 . Heat Transferred 992 | . 618 374 Parts Sabotaged . | . . . Parts Stolen . | . . . Parts Stripped . | . . . Power Chain Reactions 3 | . 1 2 Missiles Intercepted . | . . . Alert | -11 -10 -9 ------- Run | Scr Mat Mat Peak Influence 207 | . 207 138 Average Influence 45 | . 41 77 Maximum Alert Level 1 | . 1 . Low Security (%) 98 | 100 97 100 Level 1 1 | . 2 . Level 2 . | . . . Level 3 . | . . . Level 4 . | . . . Level 5 . | . . . High Security . | . . . Max Security . | . . . Squads Dispatched 4 | . 3 1 Investigation . | . . . Extermination . | . . . Reinforcement 4 | . 3 1 Assault . | . . . Garrison . | . . . Intercept . | . . . Construction Impeded . | . . . Haulers Reinforced . | . . . Stealth | -11 -10 -9 --------- Run | Scr Mat Mat Distress Signals . | . . . Communications Jammed . | . . . Distress Signals . | . . . Times Spotted 39 | . 24 15 Peak Tracking Total 8 | . 3 8 Tactical Retreats 4 | . 4 . Traps | -11 -10 -9 ------- Run | Scr Mat Mat Traps Triggered 3 | . 3 . Indirectly . | . . . Trap Hack Attempts . | . . . Triggered . | . . . Disarmed . | . . . Reprogrammed . | . . . Reused . | . . . Traps Extracted . | . . . Installed . | . . . Triggered . | . . . Machines | -11 -10 -9 ---------- Run | Scr Mat Mat Machines Disabled 4 | . 1 3 Max in Single Turn 3 | . 1 3 Machines Sabotaged . | . . . Garrisons Compromised . | . . . Overloaded Fab Kills . | . . . Fab Network Shutdowns . | . . . Hacking | -11 -10 -9 --------- Run | Scr Mat Mat Machines Accessed . | . . . Terminals . | . . . Fabricators . | . . . Repair Stations . | . . . Recycling Units . | . . . Scanalyzers . | . . . Garrison Access . | . . . Total Hacks . | . . . Successful . | . . . Failed . | . . . Catastrophic . | . . . Database Lockouts . | . . . Manual . | . . . Terminals . | . . . Fabricators . | . . . Repair Stations . | . . . Recycling Units . | . . . Scanalyzers . | . . . Garrison Access . | . . . Terminal Hacks . | . . . Fabricator Hacks . | . . . Repair Station Hacks . | . . . Recycling Unit Hacks . | . . . Scanalyzer . | . . . Garrison Access Hacks . | . . . Unauthorized Hacks . | . . . Terminals . | . . . Fabricators . | . . . Repair Stations . | . . . Recycling Units . | . . . Scanalyzers . | . . . Garrison Access . | . . . Data Cores Recovered . | . . . Used . | . . . Hacking Detections . | . . . Full Trace Events . | . . . Feedback Events . | . . . Feedback Blocked . | . . . Robot Schematics Acquired . | . . . Robots Built . | . . . Matter . | . . . Time . | . . . Total Robot Build Rating . | . . . Part Schematics Acquired . | . . . Parts Built . | . . . Matter . | . . . Time . | . . . Total Part Build Rating . | . . . Parts Repaired . | . . . Time . | . . . Parts Recycled . | . . . Recycled Matter . | . . . Retrieved Matter . | . . . Retrieved Components . | . . . Parts Scanalyzed . | . . . Part Schematics Acquired . | . . . Parts Damaged . | . . . Bothacking | -11 -10 -9 ------------ Run | Scr Mat Mat Used RIF Installer . | . . . Robots Hacked . | . . . Non-combat . | . . . Combat . | . . . Robot Hacks Applied . | . . . Relay Couplers Released . | . . . Robots Rewired . | . . . Allies Hacked . | . . . Hacks Repelled . | . . . Allies | -11 -10 -9 -------- Run | Scr Mat Mat Total Allies . | . . . Largest Group . | . . . Highest-Rated Group . | . . . Highest-Rated Ally . | . . . Total Orders . | . . . Ally Attacks . | . . . Total Damage . | . . . Kills . | . . . Allies Corrupted . | . . . Allies Melted . | . . . Intel | -11 -10 -9 ------- Run | Scr Mat Mat Robot Analysis Total . | . . . Derelict Logs Recovered . | . . . Drone Launches . | . . . Drone Recoveries . | . . . Exploration | -11 -10 -9 ------------- Run | Scr Mat Mat Turns Passed 1423 | 73 1108 242 Spaces Moved 701 | 45 537 119 Core 65 | 10 . 55 Treads 601 | 35 537 29 Legs 35 | . . 35 Wheels . | . . . Hover . | . . . Flight . | . . . Fastest Speed 50 | 50 160 100 Average Speed 153 | 135 160 129 Slowest Speed 250 | 160 160 250 Overloaded Moves . | . . . Propulsion Burnouts . | . . . Robots Hopped . | . . . Cave-ins Triggered 1 | . . 1 Exploration Rate (%) 34 | 4 82 16 Regions Visited 2 Branch Regions . Pre-discovered Areas . | . . . Known Exits Taken . | . . . Unknown Exits Taken 2 | 1 1 . Scrap Searched . | . . . Spaces Dug . | . . . Terrain Destroyed 56 | . 3 53 Melee . | . . . Projectile . | . . . AOE 56 | . 3 53 Actions | -11 -10 -9 --------- Run | Scr Mat Mat Total 913 | 54 674 185 Wait 96 | . 60 36 Move 699 | 44 536 119 Hop . | . . . Pick Up 13 | 4 8 1 Fast Attach 12 | 6 2 4 Attach 6 | . 1 5 Detach . | . . . Swap 6 | . 5 1 Drop 7 | . 5 2 Fire 72 | . 56 16 Melee . | . . . Ram 1 | . . 1 Kick . | . . . Crush 1 | . 1 . Escape Stasis . | . . . Rewire . | . . . Trap . | . . . Miscellaneous . | . . . Route ------- -11/Scrapyard -10/Materials (discovered 3 exits: [*Mat x2] / [*Min]) -9/Materials (discovered 1 exit: [*Sto]) History --------- Turn | Location | Event 8 | -11/Scrapyard | Discovered new exit (range 15) 74 | -11/Scrapyard | Entered Materials 302 | -10/Materials | Build established: Mutant 578 | -10/Materials | Discovered new exit (range 14) 697 | -10/Materials | Discovered new exit (range 11) 1103 | -10/Materials | Discovered new exit (range 16) 1182 | -10/Materials | Entered another Materials area 1182 | -9/Materials | Evolved 2 slots: Propulsion x2 1269 | -9/Materials | Discovered new exit (range 13) 1351 | -9/Materials | Crushed by falling debris 1372 | -9/Materials | Core integrity fell below 50% 1382 | -9/Materials | Lost 11 parts (2p2n1u6w) 1411 | -9/Materials | Core integrity fell below 20% 1424 | -9/Materials | Destroyed by G-34 Mercenary with Small Laser Last Messages --------------- 01374_ T-07 Excavator is excavating. 01377_ K-01 Serf collects debris. 01379_ T-07 Excavator is excavating. 01382_ U-05 Engineer lays Concrete. 01383_ T-07 Excavator is excavating. 01384_ U-05 Engineer lays Concrete. 01389_ Acquired Lgt. EM Pulse Cannon. 01394_ C-30 ARC bursts open, deploying its payload. 01394_ G-47 Trooper unfolds itself. 01394_ G-34 Mercenary unfolds itself. 01405_ T-07 Excavator is excavating. 01412_ Lgt. EM Pulse Cannon destroyed. 01413_ Y-45 Defender IFF system glitched. 01413_ Electrolysis Chamber disabled. 01414_ Slammed into Y-45 Defender. 01414_ Heat Sink fried. 01414_ Y-45 Defender destroyed. 01416_ Acquired Lgt. Treads. 01418_ T-07 Excavator is excavating. 01423_ U-05 Engineer lays Concrete. Map ----- +----------------------------------------------------+ | ????????# "= " ?????????? | | ????????# " " ????????? | | ????????# " """"" " " [[????????? | | ????????# """"""""" " " [ ???????? | | ????????# """ """ # " ???????? | | ????????# " "##+???????????? | | ????????# " """"#?????????????? | | ?############"""####""" < #?????????? | | ?# """"##### #?????????? | | ?# ######## " ###?????????????????? | | ?# #??????#%**###???????????????????? | | #####+####### #??????#=!%#?????????????????????? | | # #??????# =#?????????????????????? | | """ """" # #??????# #?????????????????????? | | """ ""S"" # #??????# #?????????????????????? | | """ "" "" # #??????# #?????????????????????? | | # ##?????# #?????????????????????? | | # # ###??# +?????????????????????? | | ############# # #??# #?????????????????????? | | ?????? # # #?# #?????????????????????? | | ???# """" # # u ### ##????????????????????? | | ???# """" # ### ### #????????????????????? | | ???# """" # #########????????????? | | ???# + gg ?????????????? | | ???# "" # *!g #????????????????????? | | ???# """ #######/### @ #????????????????????? | | ???# S" #??# [% ###/###????????????????????? | | ???# #??# #? ??????????????????????? | | ???##########??# " #? [??????????????????????? | | ???????????????# """ # ?????????????????????? | | ???????????????# """ # ?????????????????????? | | ???????????????# # //????????????????????? | | ???????????????###/#### /=????????????????????? | | ???????????????? ??# ! ???????????????????? | | ??????????????? ??# ???????????????????? | | ?????????????? ?# ??????????????????? | | ????????????? ?#########??????????????????? | | ????????????#### #???????????????????????????? | | ???????????????## ##???????????????????????????? | | ????????????????# #????????????????????????????? | | ????????????????# #????????????????????????????? | | ????????????????# #????????????????????????????? | | ????????????????#% #????????????????????????????? | | ????????????????# #????????????????????????????? | | ????????????????? ?????????????????????????????? | | ????????????????? ?????????????????????????????? | | ????????????????? ?????????????????????????????? | | ?????????????????????????????????????????????????? | | ?????????????????????????????????????????????????? | | ?????????????????????????????????????????????????? | +----------------------------------------------------+ Best States ------------- Heat Dissipation 28 Energy Generation 14 Energy Capacity 250 Matter Stores 300 Matter Capacity 300 Sight Range 16 Robot Scan Range 10 Terrain Scan Density 10 Evasion (%) 40 Recoil Reduction 2 Item Schematics ----------------- None Robot Schematics ------------------ None Fabricated ------------ Nothing Alien Tech Used ----------------- None Achievements -------------- None Challenges ------------ None Game ------ Seed GreatAssemblyComputer Manual? 0 Play Time 00:14:02 Cumulative 14.9 hours Start 2019.11.13 @ 19:15:32 End 2019.11.13 @ 19:29:07 Sessions 1 Manual Loads 0 Difficulty Rogue Special Mode None Game No. 42 Rogue 42 Adventurer 0 Explorer 0 Win Type - Total 0 Types 0/0/0/0/0/0/0 Lore% 7 Gallery% 18 Achievement% 12 Wizard Run 0 Options --------- ASCII 0 Keyboard 1 Movement Numpad Keybinds 0 Fullscreen 1 Font 18/SmallcapsGlow Map View 76x50 Tactical HUD 1 Map Filters NONE Filters NONE Steam 1 RUN: 5083ddce-0244-497a-8817-6a8e62e61f94